lending/lending_fUSD_20250121
["ID","MTS","AMOUNT","RATE_DAILY","PERIOD"]
[349862963,1737466270040,-500.0,0.0002084,2]
[349862964,1737466270052,-500.0,0.0002084,2]
[349862965,1737466270061,-500.0,0.0002084,2]
[349862966,1737466270070,-514.36641361,0.0002084,2]
[349862967,1737466270080,-267.7,0.0002084,2]
[349862968,1737466270090,-503.8234958,0.0002084,2]
[349862969,1737466270099,-500.0,0.0002084,2]
[349862970,1737466270108,-500.0,0.0002084,2]
[349862971,1737466270118,-500.0,0.0002084,2]
[349862972,1737466270128,-507.27398672,0.0002084,2]
[349862973,1737466270137,-500.0,0.0002084,2]
[349862974,1737466270147,-220.26,0.0002084,2]
[349862975,1737466270156,-500.0,0.0002084,2]
[349862976,1737466270166,-500.0,0.0002084,2]
[349862977,1737466270175,-508.49426775,0.0002084,2]
[349862978,1737466270185,-500.0,0.0002084,2]
[349862979,1737466270194,-500.0,0.0002084,2]
[349862980,1737466270204,-500.0,0.0002084,2]
[349862981,1737466270214,-500.0,0.0002084,2]
[349862982,1737466270223,-500.0,0.0002084,2]
[349862983,1737466270232,-500.0,0.0002084,2]
[349862984,1737466270242,-391.89307137,0.0002084,2]
[349862985,1737466270251,-500.0,0.0002084,2]
[349862986,1737466270261,-500.0,0.0002084,2]
[349862987,1737466270270,-500.0,0.0002084,2]
[349862988,1737466270279,-500.0,0.0002084,2]
[349862989,1737466270288,-500.0,0.0002084,2]
[349862990,1737466270298,-500.0,0.0002084,2]
[349862991,1737466270307,-500.0,0.0002084,2]
[349862992,1737466270317,-500.0,0.0002084,2]
[349862993,1737466270326,-500.0,0.0002084,2]
[349862994,1737466270335,-500.0,0.0002084,2]
[349862995,1737466270345,-500.0,0.0002084,2]
[349862996,1737466270354,-500.0,0.0002084,2]
[349862997,1737466270363,-999.0,0.0002084,2]
[349862998,1737466270373,-500.0,0.0002084,2]
[349862999,1737466270382,-500.0,0.0002084,2]
[349863000,1737466270392,-500.0,0.0002084,2]
[349863001,1737466270402,-500.0,0.0002084,2]
[349863002,1737466270411,-500.0,0.0002084,2]
[349863003,1737466270421,-500.0,0.0002084,2]
[349863004,1737466270431,-500.0,0.0002084,2]
[349863005,1737466270440,-503.7449619,0.0002084,2]
[349863006,1737466270449,-500.0,0.0002084,2]
[349863007,1737466270459,-500.0,0.0002084,2]
[349863008,1737466270468,-500.0,0.0002084,2]
[349863009,1737466270478,-500.0,0.0002084,2]
[349863010,1737466270487,-500.0,0.0002084,2]
[349863011,1737466270496,-500.0,0.0002084,2]
[349863012,1737466270506,-500.0,0.0002084,2]
[349863013,1737466270515,-500.0,0.0002084,2]
[349863014,1737466270524,-500.0,0.0002084,2]
[349863015,1737466270534,-500.0,0.0002084,2]
[349863016,1737466270543,-649.59,0.0002084,2]
[349863017,1737466270553,-212.76046064,0.00020841,2]
[349863018,1737466270562,-273.75883142,0.00020841,2]
[349863019,1737466270572,-500.0,0.00020841,2]
[349863020,1737466270581,-500.0,0.00020841,2]
[349863021,1737466270590,-643.47,0.00020841,2]
[349863022,1737466270599,-500.0,0.00020841,2]
[349863023,1737466270608,-500.0,0.00020841,2]
[349863024,1737466270618,-500.0,0.00020841,2]
[349863025,1737466270628,-507.23,0.00020841,2]
[349863026,1737466270637,-500.0,0.00020841,2]
[349863027,1737466270647,-500.0,0.00020841,2]
[349863028,1737466270656,-473.34,0.00020841,2]
[349863029,1737466270666,-500.0,0.00020841,2]
[349863030,1737466270675,-500.0,0.00020841,2]
[349863031,1737466270685,-500.0,0.00020841,2]
[349863032,1737466270694,-500.0,0.00020841,2]
[349863033,1737466270704,-500.0,0.00020841,2]
[349863034,1737466270713,-541.49826183,0.00020841,2]
[349863035,1737466270722,-500.0,0.00020841,2]
[349863036,1737466270736,-500.0,0.00020841,2]
[349863037,1737466270746,-500.0,0.00020841,2]
[349863038,1737466270755,-235.180634,0.00020841,2]
[349863039,1737466270764,-500.0,0.00020841,2]
[349863040,1737466270774,-500.0,0.00020841,2]
[349863041,1737466270784,-500.0,0.00020841,2]
[349863042,1737466270793,-381.440592,0.00020841,2]
[349863043,1737466270805,-281.52,0.00020841,2]
[349863044,1737466270815,-500.0,0.00020841,2]
[349863045,1737466270824,-291.74811375,0.00020841,2]
[349863046,1737466270833,-500.0,0.00020841,2]
[349863047,1737466270843,-518.45260047,0.00020841,2]
[349863048,1737466270852,-393.96,0.00020841,2]
[349863049,1737466270861,-500.0,0.00020841,2]
[349863050,1737466270870,-500.0,0.00020841,2]
[349863051,1737466270880,-500.0,0.00020841,2]
[349863052,1737466270889,-500.0,0.00020841,2]
[349863053,1737466270898,-500.0,0.00020841,2]
[349863054,1737466270908,-500.0,0.00020841,2]
[349863055,1737466270917,-500.0,0.00020841,2]
[349863056,1737466270926,-500.0,0.00020841,2]
[349863057,1737466270935,-500.0,0.00020841,2]
[349863058,1737466270944,-500.0,0.00020841,2]
[349863059,1737466270953,-500.0,0.00020841,2]
[349863060,1737466270962,-500.0,0.00020841,2]
[349863061,1737466270971,-500.0,0.00020841,2]
[349863062,1737466270981,-500.0,0.00020841,2]
[349863063,1737466270990,-500.0,0.00020841,2]
[349863064,1737466270999,-645.6,0.00020841,2]
[349863065,1737466271010,-500.0,0.00020841,2]
[349863066,1737466271020,-500.0,0.00020841,2]
[349863067,1737466271029,-151.0,0.00020841,2]
[349863068,1737466271039,-615.362484,0.00020841,2]
[349863069,1737466271050,-615.362484,0.00020841,2]
[349863070,1737466271059,-500.0,0.00020841,2]
[349863071,1737466271070,-500.0,0.00020841,2]
[349863072,1737466271089,-592.02,0.00020841,2]
[349863073,1737466271105,-500.0,0.00020841,2]
[349863074,1737466271116,-548.93,0.00020841,2]
[349863075,1737466271126,-161.236059,0.00020841,2]
[349863076,1737466271137,-538.29,0.00020841,2]
[349863077,1737466271147,-352.277043,0.00020841,2]
[349863078,1737466271156,-352.277043,0.00020841,2]
[349863079,1737466271166,-566.2,0.00020841,2]
[349863080,1737466271175,-151.0,0.00020841,2]
[349863081,1737466271184,-585.43,0.00020841,2]
[349863082,1737466271194,-151.0,0.00020841,2]
[349863083,1737466271203,-1107.581745,0.00020841,2]
[349863084,1737466271340,-1107.581745,0.00020841,2]
[349863085,1737466271364,-765.19,0.00020841,2]
[349863086,1737466271373,-500.0,0.00020841,2]
[349863087,1737466271382,-500.0,0.00020841,2]
[349863088,1737466271392,-721.6,0.00020841,2]
[349863089,1737466271401,-500.0,0.00020841,2]
[349863090,1737466271410,-1570.09,0.00020841,2]
[349863091,1737466271420,-1723.12,0.00020841,2]
[349863092,1737466271430,-500.0,0.00020841,2]
[349863093,1737466271440,-762.4,0.00020841,2]
[349863094,1737466271450,-151.0,0.00020841,2]
[349863095,1737466271459,-682.76,0.00020841,2]
[349863096,1737466271470,-500.0,0.00020841,2]
[349863097,1737466271479,-151.0,0.00020841,2]
[349863098,1737466271489,-151.0,0.00020841,2]
[349863099,1737466271499,-634.38,0.00020841,2]
[349863100,1737466271508,-742.16,0.00020841,2]
[349863101,1737466271517,-1820.05,0.00020841,2]
[349863102,1737466271527,-443.68351525,0.00020841,2]
[349863103,1737466271536,-625.3,0.00020841,2]
[349863104,1737466271547,-500.0,0.00020841,2]
[349863105,1737466271557,-151.0,0.00020841,2]
[349863106,1737466271566,-945.55,0.00020841,2]
[349863107,1737466271575,-4665.95,0.00020841,2]
[349863108,1737466271585,-500.0,0.00020841,2]
[349863109,1737466271595,-173.999564,0.00020841,2]
[349863110,1737466271604,-500.0,0.00020841,2]
[349863111,1737466271614,-173.999564,0.00020841,2]
[349863112,1737466271623,-631.46,0.00020841,2]
[349863113,1737466271633,-1528.23,0.00020841,2]
[349863114,1737466271642,-500.0,0.00020841,2]
[349863115,1737466271651,-500.0,0.00020841,2]
[349863116,1737466271661,-266.590664,0.00020841,2]
[349863117,1737466271671,-3600.11,0.00020841,2]
[349863118,1737466271681,-500.0,0.00020841,2]
[349863119,1737466271691,-746.7,0.00020841,2]
[349863120,1737466271700,-500.0,0.00020841,2]
[349863121,1737466271710,-1112.34,0.00020841,2]
[349863122,1737466271723,-500.0,0.00020841,2]
[349863123,1737466271733,-151.0,0.00020841,2]
[349863124,1737466271743,-500.0,0.00020841,2]
[349863125,1737466271753,-500.0,0.00020841,2]
[349863126,1737466271763,-500.0,0.00020841,2]
[349863127,1737466271773,-890.729369,0.00020841,2]
[349863128,1737466271782,-2399.14,0.00020841,2]
[349863129,1737466271792,-1080.97,0.00020841,2]
[349863130,1737466271803,-151.0,0.00020841,2]
[349863131,1737466271815,-1341.62,0.00020841,2]
[349863132,1737466271824,-500.0,0.00020841,2]
[349863133,1737466271834,-500.0,0.00020841,2]
[349863134,1737466271843,-902.64,0.00020841,2]
[349863135,1737466271853,-153.059533,0.00020841,2]
[349863136,1737466271863,-500.0,0.00020841,2]
[349863137,1737466271873,-259.940165,0.00020841,2]
[349863138,1737466271883,-1221.03,0.00020841,2]
[349863139,1737466271892,-500.0,0.00020841,2]
[349863140,1737466271902,-259.940165,0.00020841,2]
[349863141,1737466271912,-500.0,0.00020841,2]
[349863142,1737466271921,-2340.6,0.00020841,2]
[349863143,1737466271931,-3326.08,0.00020841,2]
[349863144,1737466271941,-1332.4,0.00020841,2]
[349863145,1737466271950,-2333.74,0.00020841,2]
[349863146,1737466271960,-500.0,0.00020841,2]
[349863147,1737466271970,-906.05,0.00020841,2]
[349863148,1737466271979,-500.0,0.00020841,2]
[349863149,1737466271988,-500.0,0.00020841,2]
[349863150,1737466271998,-625.12,0.00020841,2]
[349863151,1737466272007,-500.0,0.00020841,2]
[349863152,1737466272018,-500.0,0.00020841,2]
[349863153,1737466272028,-150.077499,0.00020841,2]
[349863154,1737466272037,-500.0,0.00020841,2]
[349863155,1737466272050,-1167.19,0.00020841,2]
[349863156,1737466272059,-500.0,0.00020841,2]
[349863157,1737466272070,-3405.97,0.00020841,2]
[349863158,1737466272081,-3078.63,0.00020841,2]
[349863159,1737466272091,-286.35,0.00020841,2]
[349863160,1737466272102,-594.8,0.00020841,2]
[349863161,1737466272112,-500.0,0.00020841,2]
[349863162,1737466272122,-1600.11,0.00020841,2]
[349863163,1737466272132,-161.236057,0.00020841,2]
[349863164,1737466272142,-500.0,0.00020841,2]
[349863165,1737466272151,-359.65,0.00020841,2]
[349863166,1737466272161,-500.0,0.00020841,2]
[349863167,1737466272172,-500.0,0.00020841,2]
[349863168,1737466272182,-639.37,0.00020841,2]
[349863169,1737466272193,-500.0,0.00020841,2]
[349863170,1737466272203,-500.0,0.00020841,2]
[349863171,1737466272212,-500.0,0.00020841,2]
[349863172,1737466272222,-500.0,0.00020841,2]
[349863173,1737466272232,-500.0,0.00020841,2]
[349863174,1737466272242,-500.0,0.00020841,2]
[349863175,1737466272251,-770.84,0.00020841,2]
[349863176,1737466272261,-646.21,0.00020841,2]
[349863177,1737466272271,-1159.43,0.00020841,2]
[349863178,1737466272281,-568.04,0.00020841,2]
[349863179,1737466272291,-500.0,0.00020841,2]
[349863180,1737466272304,-752.81,0.00020841,2]
[349863181,1737466272313,-659.13,0.00020841,2]
[349863182,1737466272323,-1525.3,0.00020841,2]
[349863183,1737466272333,-3043.8,0.00020841,2]
[349863184,1737466272343,-2613.72,0.00020841,2]
[349863185,1737466272353,-493.4,0.00020841,2]
[349863186,1737466272362,-780.92,0.00020841,2]
[349863187,1737466272372,-1143.64,0.00020841,2]
[349863188,1737466272381,-500.0,0.00020841,2]
[349863189,1737466272391,-648.1036597,0.00020841,2]
[349863190,1737466272400,-705.38,0.00020842,2]
[349863191,1737466272409,-405.3,0.00020842,2]
[349863192,1737466272419,-500.0,0.00020842,2]
[349863193,1737466272429,-150.0,0.00020842,2]
[349863194,1737466272438,-312.37420605,0.00020851,2]
[349863195,1737466272447,-1000.0,0.00020852,2]
[349863196,1737466272457,-10000.0,0.00020853,2]
[349863197,1737466272466,-150.0,0.00020884,2]
[349863198,1737466272476,-1000.0,0.00020897,2]
[349863199,1737466272486,-150.0,0.00020898,2]
[349863200,1737466272495,-122215.62620915,0.000209,2]
[349863201,1737466272505,-1000.0,0.000209,2]
[349863202,1737466272514,-409.76646604,0.000209,2]
[349863203,1737466272524,-381.84442122,0.000209,2]
[349863204,1737466272533,-150.0,0.00020907,2]
[349863205,1737466272543,-200.0,0.00020912,2]
[349863206,1737466272556,-150.0,0.00020915,2]
[349863207,1737466272566,-20113.0,0.00020959,2]
[349863208,1737466272575,-4488.0,0.00020959,2]
[349863209,1737466272584,-511.0,0.00020959,2]
[349863210,1737466272594,-10000.0,0.0002096,2]
[349863211,1737466272603,-150.0,0.00020969,2]
[349863212,1737466272614,-500.9778373,0.00020973,2]
[349863213,1737466272624,-150.0,0.00020973,2]
[349863214,1737466272633,-464.0,0.00020986,2]
[349863215,1737466272643,-150.0,0.00020992,2]
[349863216,1737466272652,-150.0,0.00020994,2]
[349863217,1737466272662,-1000.0,0.00020996,2]
[349863218,1737466272671,-183.46582188,0.00020999,2]
[349863219,1737466272680,-666.0,0.00020999,2]
[349863220,1737466272690,-1000.82557306,0.00020999,2]
[349863221,1737466272699,-500.0,0.00020999,2]
[349863222,1737466272708,-151.0,0.00020999,2]
[349863223,1737466272718,-151.0,0.00020999,2]
[349863224,1737466272727,-151.0,0.00020999,2]
[349863225,1737466272740,-151.0,0.00020999,2]
[349863226,1737466272750,-257.068778,0.00020999,2]
[349863227,1737466272759,-151.0,0.00020999,2]
[349863228,1737466272768,-3696424.41314261,0.00021,15]
[349863229,1737466273202,-943.45,0.00019178,2]
[349863230,1737466273211,-1366.15,0.00019745,2]
[349863231,1737466273221,-500.0,0.00020293,2]
[349863232,1737466273231,-2436.9,0.00021,15]
[349863233,1737466273315,-1366.15,0.00020019,2]
[349863234,1737466273324,-9159.70454147,0.00021,15]
[349863235,1737466273726,-500.0,0.00019178,2]
[349863236,1737466273735,-500.0,0.00019178,2]
[349863237,1737466273745,-943.45,0.00019452,2]
[349863238,1737466273755,-500.0,0.00019452,2]
[349863239,1737466273765,-500.0,0.00019471,2]
[349863240,1737466273774,-943.45,0.00019726,2]
[349863241,1737466273783,-645.04645593,0.00019745,2]
[349863242,1737466273794,-943.45,0.0002,2]
[349863243,1737466273806,-943.45,0.00020273,2]
[349863244,1737466273816,-151.0,0.00020292,2]
[349863245,1737466273825,-1366.15,0.00020293,2]
[349863246,1737466273834,-943.45,0.00020547,2]
[349863247,1737466273843,-151.0,0.00020566,2]
[349863248,1737466273852,-500.0,0.00020567,2]
[349863249,1737466273861,-1366.15,0.00020567,2]
[349863250,1737466273871,-943.45,0.00020821,2]
[349863251,1737466273881,-500.0,0.00020841,2]
[349863252,1737466273890,-1366.15,0.00020841,2]
[349863253,1737466273899,-1503811.18289543,0.00021,15]
[349863254,1737466273909,-1000.000003,0.00021,2]
[349863255,1737466273918,-92168.0,0.00021,7]
[349863256,1737466273927,-322096.42860131,0.00021,2]
[349863257,1737466273936,-13034.57032323,0.00021,2]
[349863258,1737466273946,-1893.55436817,0.00021,2]
[349863259,1737466273956,-142210.59200469,0.00021,2]
[349863260,1737466273965,-2880.33855767,0.00021,3]
[349863261,1737466273975,-27195.70087213,0.00021,2]
[349863262,1737466273984,-2164.58,0.00021,2]
[349863263,1737466273993,-9800.0,0.00021,17]
[349863264,1737466274003,-2431.99,0.00021,2]
[349863265,1737466274013,-2110.0,0.00021,2]
[349863266,1737466274023,-155.676667,0.00021,2]
[349863267,1737466274032,-154.328043,0.00021,2]
[349863268,1737466274042,-816.469852,0.00021,2]
[349863269,1737466274052,-151.0,0.00021,2]
[349863270,1737466274061,-151.0,0.00021,2]
[349863271,1737466274071,-151.0,0.00021,2]
[349863272,1737466274080,-151.0,0.00021,2]
[349863273,1737466274089,-847.813774,0.00021,2]
[349863274,1737466274099,-154.990602,0.00021,2]
[349863275,1737466274108,-847.813774,0.00021,2]
[349863276,1737466274118,-151.0,0.00021,2]
[349863277,1737466274127,-151.0,0.00021,2]
[349863278,1737466274136,-1146.462683,0.00021,2]
[349863279,1737466274145,-151.834209,0.00021,2]
[349863280,1737466274155,-1146.462683,0.00021,2]
[349863281,1737466274164,-151.0,0.00021,2]
[349863282,1737466274173,-151.0,0.00021,2]
[349863283,1737466274182,-151.0,0.00021,2]
[349863284,1737466274192,-151.0,0.00021,2]
[349863285,1737466274201,-151.0,0.00021,2]
[349863286,1737466274210,-151.0,0.00021,2]
[349863287,1737466274219,-151.0,0.00021,2]
[349863288,1737466274228,-156.721711,0.00021,2]
[349863289,1737466274238,-5000.0,0.00021,2]
[349863290,1737466274247,-151.0,0.00021,2]
[349863291,1737466274256,-153.14306,0.00021,2]
[349863292,1737466274265,-151.0,0.00021,2]
[349863293,1737466274274,-157.74491,0.00021,2]
[349863294,1737466274283,-615.362484,0.00021,2]
[349863295,1737466274293,-615.362484,0.00021,2]
[349863296,1737466274303,-352.277043,0.00021,2]
[349863297,1737466274312,-352.277043,0.00021,2]
[349863298,1737466274322,-151.0,0.00021,2]
[349863299,1737466274331,-151.0,0.00021,2]
[349863300,1737466274341,-1107.581745,0.00021,2]
[349863301,1737466274350,-1107.581745,0.00021,2]
[349863302,1737466274359,-1000.0,0.00021,2]
[349863303,1737466274369,-151.0,0.00021,2]
[349863304,1737466274378,-152.15771,0.00021,2]
[349863305,1737466274387,-151.0,0.00021,2]
[349863306,1737466274397,-151.0,0.00021,2]
[349863307,1737466274406,-151.0,0.00021,2]
[349863308,1737466274415,-173.999564,0.00021,2]
[349863309,1737466274425,-173.999564,0.00021,2]
[349863310,1737466274435,-151.0,0.00021,2]
[349863311,1737466274445,-2803.22,0.00021,2]
[349863312,1737466274455,-890.729369,0.00021,2]
[349863313,1737466274465,-890.729369,0.00021,2]
[349863314,1737466274474,-151.0,0.00021,2]
[349863315,1737466274484,-151.0,0.00021,2]
[349863316,1737466274494,-259.940165,0.00021,2]
[349863317,1737466274503,-259.940165,0.00021,2]
[349863318,1737466274513,-259.940165,0.00021,2]
[349863319,1737466274523,-259.940165,0.00021,2]
[349863320,1737466274532,-151.0,0.00021,2]
[349863321,1737466274542,-151.0,0.00021,2]
[349863322,1737466274553,-151.0,0.00021,2]
[349863323,1737466274563,-151.0,0.00021,2]
[349863324,1737466274572,-151.0,0.00021,2]
[349863325,1737466274582,-151.0,0.00021,2]
[349863326,1737466274592,-151.0,0.00021,2]
[349863327,1737466274601,-151.0,0.00021,2]
[349863328,1737466274611,-151.0,0.00021,2]
[349863329,1737466274620,-151.0,0.00021,2]
[349863330,1737466274630,-151.0,0.00021,2]
[349863331,1737466274639,-151.0,0.00021,2]
[349863332,1737466274648,-151.0,0.00021,2]
[349863333,1737466274658,-151.0,0.00021,2]
[349863334,1737466274667,-151.0,0.00021,2]
[349863335,1737466274792,-151.0,0.00021,2]
[349863336,1737466274805,-151.0,0.00021,2]
[349863337,1737466274815,-155.887618,0.00021,2]
[349863338,1737466274825,-151.0,0.00021,2]
[349863339,1737466274835,-151.0,0.00021,2]
[349863340,1737466274844,-151.0,0.00021,2]
[349863341,1737466274854,-151.0,0.00021,2]
[349863342,1737466274863,-151.0,0.00021,2]
[349863343,1737466274873,-151.0,0.00021,2]
[349863344,1737466274882,-195.484496,0.00021,2]
[349863345,1737466274892,-195.484496,0.00021,2]
[349863346,1737466274901,-195.484496,0.00021,2]
[349863347,1737466274911,-195.484496,0.00021,2]
[349863348,1737466274920,-207.038256,0.00021,2]
[349863349,1737466274930,-207.038256,0.00021,2]
[349863350,1737466274939,-207.038256,0.00021,2]
[349863351,1737466274949,-207.038256,0.00021,2]
[349863352,1737466274959,-151.0,0.00021,2]
[349863353,1737466274969,-947.0,0.00021014,2]
[349863354,1737466274979,-151.0,0.00021021,2]
[349863355,1737466274988,-151.0,0.00021021,2]
[349863356,1737466274997,-173.999564,0.00021021,2]
[349863357,1737466275007,-173.999564,0.00021021,2]
[349863358,1737466275017,-151.0,0.00021021,2]
[349863359,1737466275027,-150.0,0.00021037,2]
[349863360,1737466275036,-615.362484,0.0002104,2]
[349863361,1737466275046,-615.362484,0.0002104,2]
[349863362,1737466275062,-352.277043,0.0002104,2]
[349863363,1737466275072,-352.277043,0.0002104,2]
[349863364,1737466275081,-151.0,0.0002104,2]
[349863365,1737466275091,-151.0,0.0002104,2]
[349863366,1737466275101,-1107.581745,0.0002104,2]
[349863367,1737466275110,-1107.581745,0.0002104,2]
[349863368,1737466275120,-545.65,0.0002104,2]
[349863369,1737466275129,-438.48,0.00021041,2]
[349863370,1737466275139,-150.0,0.0002106,2]
[349863371,1737466275149,-10000.0,0.00021067,2]
[349863372,1737466275159,-151.0,0.00021067,2]
[349863373,1737466275168,-155.380198,0.00021067,2]
[349863374,1737466275178,-289.839424,0.00021067,2]
[349863375,1737466275189,-151.0,0.00021067,2]
[349863376,1737466275198,-151.421503,0.00021067,2]
[349863377,1737466275208,-151.421503,0.00021067,2]
[349863378,1737466275218,-151.642136,0.00021067,2]
[349863379,1737466275228,-151.0,0.00021067,2]
[349863380,1737466275237,-151.0,0.00021067,2]
[349863381,1737466275247,-151.0,0.00021067,2]
[349863382,1737466275256,-151.0,0.00021067,2]
[349863383,1737466275266,-151.0,0.00021067,2]
[349863384,1737466275276,-151.0,0.00021067,2]
[349863385,1737466275284,-816.469852,0.00021067,2]
[349863386,1737466275294,-151.0,0.00021067,2]
[349863387,1737466275308,-151.0,0.00021067,2]
[349863388,1737466275318,-151.0,0.00021067,2]
[349863389,1737466275327,-151.0,0.00021067,2]
[349863390,1737466275337,-847.813774,0.00021067,2]
[349863391,1737466275347,-847.813774,0.00021067,2]
[349863392,1737466275356,-151.0,0.00021067,2]
[349863393,1737466275367,-151.0,0.00021067,2]
[349863394,1737466275376,-1146.462683,0.00021067,2]
[349863395,1737466275386,-1146.462683,0.00021067,2]
[349863396,1737466275396,-151.0,0.00021067,2]
[349863397,1737466275406,-151.0,0.00021067,2]
[349863398,1737466275415,-151.0,0.00021067,2]
[349863399,1737466275425,-151.0,0.00021067,2]
[349863400,1737466275435,-151.0,0.00021067,2]
[349863401,1737466275445,-151.0,0.00021067,2]
[349863402,1737466275455,-151.0,0.00021067,2]
[349863403,1737466275464,-151.0,0.00021067,2]
[349863404,1737466275475,-151.0,0.00021067,2]
[349863405,1737466275484,-423.37826695,0.0002108,2]
[349863406,1737466275494,-514661.01929841,0.0002108,2]
[349863407,1737466275503,-150.0,0.00021094,2]
[349863408,1737466275513,-624.92,0.00021095,2]
[349863409,1737466275523,-606.72,0.00021095,2]
[349863410,1737466275533,-500.0,0.00021095,2]
[349863411,1737466275542,-977.9,0.00021095,2]
[349863412,1737466275557,-500.0,0.00021095,2]
[349863413,1737466275567,-1540.71,0.00021095,2]
[349863414,1737466275577,-913.13,0.00021095,2]
[349863415,1737466275587,-878.19,0.00021095,2]
[349863416,1737466275608,-1459.02,0.00021095,2]
[349863417,1737466275626,-1234.48,0.00021095,2]
[349863418,1737466275646,-1350.74,0.00021095,2]
[349863419,1737466275665,-594.25,0.00021095,2]
[349863420,1737466275681,-628.68,0.00021095,2]
[349863421,1737466275700,-588.77,0.00021095,2]
[349863422,1737466275721,-1741.54,0.00021095,2]
[349863423,1737466275741,-1603.56,0.00021095,2]
[349863424,1737466275758,-500.0,0.00021095,2]
[349863425,1737466275776,-1817.86,0.00021095,2]
[349863426,1737466275794,-548.65482246,0.00021095,2]
[349863427,1737466275814,-500.0,0.00021095,2]
[349863428,1737466275832,-500.0,0.00021095,2]
[349863429,1737466275848,-606.67,0.00021095,2]
[349863430,1737466275865,-624.30679396,0.00021095,2]
[349863431,1737466275879,-500.0,0.00021095,2]
[349863432,1737466275894,-500.0,0.00021095,2]
[349863433,1737466275914,-500.0,0.00021095,2]
[349863434,1737466275930,-943.45,0.00021095,2]
[349863435,1737466275945,-800.0,0.000211,7]
[349863436,1737466275960,-1000.0,0.000211,2]
[349863437,1737466275976,-150.0,0.00021106,2]
[349863438,1737466275991,-500.0,0.00021113,2]
[349863439,1737466276006,-1107.1,0.00021113,2]
[349863440,1737466276020,-500.0,0.00021113,2]
[349863441,1737466276034,-572.99,0.00021113,2]
[349863442,1737466276047,-774.63,0.00021113,2]
[349863443,1737466276065,-500.0,0.00021113,2]
[349863444,1737466276079,-1000.0,0.00021113,2]
[349863445,1737466276094,-790.45,0.00021113,2]
[349863446,1737466276107,-500.0,0.00021113,2]
[349863447,1737466276120,-500.0,0.00021113,2]
[349863448,1737466276135,-961.85,0.00021113,2]
[349863449,1737466276148,-312.37420605,0.00021114,2]
[349863450,1737466276161,-500.0,0.00021114,2]
[349863451,1737466276174,-500.0,0.00021114,2]
[349863452,1737466276189,-500.0,0.00021114,2]
[349863453,1737466276203,-500.0,0.00021114,2]
[349863454,1737466276214,-500.0,0.00021114,2]
[349863455,1737466276222,-500.0,0.00021114,2]
[349863456,1737466276229,-500.0,0.00021114,2]
[349863457,1737466276236,-500.0,0.00021114,2]
[349863458,1737466276243,-682.6,0.00021114,2]
[349863459,1737466276251,-500.0,0.00021114,2]
[349863460,1737466276258,-247.96,0.00021114,2]
[349863461,1737466276266,-500.0,0.00021114,2]
[349863462,1737466276273,-424.59,0.00021114,2]